fUST/lending_fUST_20250625
["ID","MTS","AMOUNT","RATE_DAILY","PERIOD"]
[367468539,1750807842305,-460.0,0.00016986,2]
[367468541,1750807842315,-460.0,0.00016986,2]
[367468543,1750807842324,-560.89,0.00016986,2]
[367468545,1750807842333,-195.53,0.00016986,2]
[367468547,1750807842342,-910.0,0.00016986,2]
[367468549,1750807842352,-703.14,0.00016986,2]
[367468551,1750807842361,-460.0,0.00016986,2]
[367468553,1750807842371,-670.46,0.00016986,2]
[367468555,1750807842380,-280.28922674,0.00017021,2]
[367468557,1750807842389,-856.07,0.0001714,2]
[367468559,1750807842398,-500.0,0.00017141,2]
[367468561,1750807842408,-1163.26759056,0.00017229,2]
[367468563,1750807842417,-160.0,0.00017243,2]
[367468565,1750807842427,-425.14181427,0.00017243,2]
[367468567,1750807842436,-836.80226758,0.00017243,2]
[367468569,1750807842446,-213.66798275,0.00017243,2]
[367468571,1750807842455,-160.0,0.00017243,2]
[367468574,1750807842464,-846.68469334,0.00017243,2]
[367468577,1750807842474,-12556.00642039,0.00017243,2]
[367468579,1750807842483,-160.0,0.00017243,2]
[367468581,1750807842492,-160.0,0.00017243,2]
[367468583,1750807842501,-230.20892031,0.00017243,2]
[367468585,1750807842511,-524.15841286,0.00017245,2]
[367468587,1750807842522,-500.0,0.0001725,2]
[367468589,1750807842532,-500.0,0.0001725,2]
[367468591,1750807842541,-500.0,0.0001725,2]
[367468593,1750807842551,-500.0,0.0001725,2]
[367468595,1750807842560,-500.0,0.0001725,2]
[367468597,1750807842570,-500.0,0.0001725,2]
[367468600,1750807842579,-460.0,0.0001726,2]
[367468602,1750807842588,-460.0,0.0001726,2]
[367468604,1750807842597,-600.46,0.0001726,2]
[367468606,1750807842607,-547.59,0.0001726,2]
[367468608,1750807842615,-706.01,0.0001726,2]
[367468610,1750807842625,-483.1,0.0001726,2]
[367468612,1750807842634,-460.0,0.0001726,2]
[367468614,1750807842644,-460.0,0.0001726,2]
[367468616,1750807842655,-460.0,0.0001726,2]
[367468618,1750807842664,-932.9,0.0001726,2]
[367468620,1750807842674,-550.34,0.0001726,2]
[367468622,1750807842683,-268.95,0.0001726,2]
[367468624,1750807842693,-567.58,0.0001726,2]
[367468627,1750807842703,-550.85,0.0001726,2]
[367468629,1750807842712,-460.0,0.0001726,2]
[367468631,1750807842721,-494.53,0.0001726,2]
[367468633,1750807842731,-1747.11,0.0001726,2]
[367468634,1750807842740,-460.0,0.0001726,2]
[367468636,1750807842749,-460.0,0.0001726,2]
[367468639,1750807842759,-589.16,0.0001726,2]
[367468641,1750807842769,-460.0,0.0001726,2]
[367468644,1750807842778,-730.22,0.0001726,2]
[367468647,1750807842788,-460.0,0.0001726,2]
[367468650,1750807842797,-429.14,0.0001726,2]
[367468653,1750807842807,-560.89,0.0001726,2]
[367468656,1750807842816,-910.0,0.0001726,2]
[367468658,1750807842826,-703.14,0.0001726,2]
[367468662,1750807842835,-460.0,0.0001726,2]
[367468665,1750807842844,-670.46,0.0001726,2]
[367468668,1750807842854,-500.0,0.00017286,2]
[367468670,1750807842863,-500.0,0.00017286,2]
[367468672,1750807842872,-500.0,0.00017286,2]
[367468674,1750807842882,-500.0,0.00017286,2]
[367468676,1750807842891,-453.20022986,0.00017286,2]
[367468678,1750807842900,-500.0,0.00017286,2]
[367468680,1750807842909,-856.07,0.00017292,2]
[367468682,1750807842918,-500.0,0.00017315,2]
[367468684,1750807842928,-25000.0,0.00017408,2]
[367468686,1750807842937,-5000.0,0.00017408,2]
[367468688,1750807842947,-500.0,0.00017427,2]
[367468690,1750807842956,-500.0,0.00017444,2]
[367468692,1750807842966,-856.07,0.00017533,2]
[367468694,1750807842978,-460.0,0.00017534,2]
[367468697,1750807842988,-310.71,0.00017534,2]
[367468700,1750807842997,-547.59,0.00017534,2]
[367468702,1750807843006,-706.01,0.00017534,2]
[367468704,1750807843016,-483.1,0.00017534,2]
[367468706,1750807843027,-460.0,0.00017534,2]
[367468708,1750807843036,-460.0,0.00017534,2]
[367468710,1750807843045,-460.0,0.00017534,2]
[367468712,1750807843056,-550.34,0.00017534,2]
[367468714,1750807843065,-932.9,0.00017534,2]
[367468716,1750807843075,-550.85,0.00017534,2]
[367468718,1750807843085,-448.88223408,0.00017534,2]
[367468720,1750807843094,-1747.11,0.00017534,2]
[367468722,1750807843103,-403.58,0.00017534,2]
[367468724,1750807843113,-460.0,0.00017534,2]
[367468726,1750807843122,-589.16,0.00017534,2]
[367468728,1750807843131,-460.0,0.00017534,2]
[367468730,1750807843141,-730.22,0.00017534,2]
[367468732,1750807843150,-460.0,0.00017534,2]
[367468734,1750807843159,-560.89,0.00017534,2]
[367468736,1750807843170,-910.0,0.00017534,2]
[367468738,1750807843180,-703.14,0.00017534,2]
[367468740,1750807843190,-256.9,0.00017534,2]
[367468742,1750807843199,-670.46,0.00017534,2]
[367468744,1750807843208,-204533.12915687,0.00017671,2]
[367468746,1750807843218,-1000.0,0.00017798,2]
[367468748,1750807843227,-500.0,0.00017798,2]
[367468750,1750807843236,-918.82213867,0.00017798,2]
[367468752,1750807843246,-500.0,0.00017798,2]
[367468754,1750807843255,-1000.0,0.00017798,2]
[367468756,1750807843265,-1000.0,0.00017798,2]
[367468758,1750807843274,-460.0,0.00017808,2]
[367468760,1750807843284,-547.59,0.00017808,2]
[367468762,1750807843294,-706.01,0.00017808,2]
[367468764,1750807843303,-483.1,0.00017808,2]
[367468766,1750807843312,-460.0,0.00017808,2]
[367468768,1750807843322,-460.0,0.00017808,2]
[367468770,1750807843332,-460.0,0.00017808,2]
[367468772,1750807843341,-932.9,0.00017808,2]
[367468774,1750807843351,-550.34,0.00017808,2]
[367468776,1750807843360,-550.85,0.00017808,2]
[367468778,1750807843370,-1747.11,0.00017808,2]
[367468780,1750807843379,-460.0,0.00017808,2]
[367468782,1750807843388,-589.16,0.00017808,2]
[367468784,1750807843398,-460.0,0.00017808,2]
[367468786,1750807843408,-730.22,0.00017808,2]
[367468788,1750807843417,-460.0,0.00017808,2]
[367468790,1750807843426,-560.89,0.00017808,2]
[367468792,1750807843436,-910.0,0.00017808,2]
[367468794,1750807843446,-703.14,0.00017808,2]
[367468796,1750807843455,-670.46,0.00017808,2]
[367468799,1750807843464,-500.0,0.00017834,2]
[367468801,1750807843474,-500.0,0.00017834,2]
[367468803,1750807843483,-1000.0,0.00017834,2]
[367468805,1750807843493,-1000.0,0.00017834,2]
[367468807,1750807843503,-1000.0,0.00017834,2]
[367468809,1750807843512,-500.0,0.00017863,2]
[367468811,1750807843522,-500.0,0.000179,2]
[367468813,1750807843533,-856.07,0.0001793,2]
[367468815,1750807843542,-420.0,0.00017933,2]
[367468817,1750807843551,-420.0,0.00017934,2]
[367468819,1750807843561,-856.07,0.00017945,2]
[367468821,1750807843570,-856.07,0.00017945,2]
[367468823,1750807843579,-1598.0,0.00018022,2]
[367468824,1750807843589,-856.07,0.00018081,2]
[367468827,1750807843598,-428.78,0.00018082,2]
[367468829,1750807843608,-547.59,0.00018082,2]
[367468831,1750807843617,-706.01,0.00018082,2]
[367468833,1750807843627,-483.1,0.00018082,2]
[367468834,1750807843636,-460.0,0.00018082,2]
[367468836,1750807843645,-460.0,0.00018082,2]
[367468839,1750807843655,-460.0,0.00018082,2]
[367468840,1750807843664,-932.9,0.00018082,2]
[367468842,1750807843673,-550.34,0.00018082,2]
[367468844,1750807843682,-550.85,0.00018082,2]
[367468846,1750807843691,-1747.11,0.00018082,2]
[367468848,1750807843701,-460.0,0.00018082,2]
[367468849,1750807843710,-589.16,0.00018082,2]
[367468851,1750807843720,-460.0,0.00018082,2]
[367468853,1750807843730,-730.22,0.00018082,2]
[367468855,1750807843739,-584.17,0.00018082,2]
[367468857,1750807843748,-560.89,0.00018082,2]
[367468859,1750807843758,-910.0,0.00018082,2]
[367468861,1750807843767,-703.14,0.00018082,2]
[367468863,1750807843777,-670.46,0.00018082,2]
[367468865,1750807843787,-1163.26759056,0.00018119,2]
[367468867,1750807843796,-215.0738,0.00018229,2]
[367468869,1750807843805,-1500.0,0.00018346,2]
[367468871,1750807843815,-1500.0,0.00018346,2]
[367468873,1750807843823,-856.07,0.00018355,2]
[367468875,1750807843832,-547.59,0.00018356,2]
[367468877,1750807843842,-706.01,0.00018356,2]
[367468878,1750807843851,-483.1,0.00018356,2]
[367468880,1750807843860,-460.0,0.00018356,2]
[367468882,1750807843870,-460.0,0.00018356,2]
[367468885,1750807843880,-460.0,0.00018356,2]
[367468887,1750807843888,-932.9,0.00018356,2]
[367468889,1750807843898,-550.34,0.00018356,2]
[367468891,1750807843907,-550.85,0.00018356,2]
[367468893,1750807843916,-1747.11,0.00018356,2]
[367468908,1750807844054,-460.0,0.00018356,2]
[367468910,1750807844066,-589.16,0.00018356,2]
[367468912,1750807844076,-460.0,0.00018356,2]
[367468914,1750807844086,-730.22,0.00018356,2]
[367468916,1750807844095,-560.89,0.00018356,2]
[367468918,1750807844105,-910.0,0.00018356,2]
[367468920,1750807844115,-703.14,0.00018356,2]
[367468922,1750807844124,-670.46,0.00018356,2]
[367468924,1750807844134,-500.0,0.00018382,2]
[367468926,1750807844143,-672.95738835,0.00018382,2]
[367468928,1750807844152,-500.0,0.00018382,2]
[367468930,1750807844162,-856.07,0.00018493,2]
[367468932,1750807844171,-168.0,0.00018562,2]
[367468935,1750807844181,-856.07,0.00018629,2]
[367468937,1750807844190,-856.07,0.00018629,2]
[367468939,1750807844199,-856.07,0.00018629,2]
[367468941,1750807844209,-856.07,0.00018629,2]
[367468943,1750807844218,-856.13,0.00018629,2]
[367468944,1750807844228,-547.59,0.0001863,2]
[367468945,1750807844241,-706.01,0.0001863,2]
[367468946,1750807844251,-483.1,0.0001863,2]
[367468947,1750807844260,-460.0,0.0001863,2]
[367468948,1750807844270,-460.0,0.0001863,2]
[367468949,1750807844279,-460.0,0.0001863,2]
[367468950,1750807844290,-932.9,0.0001863,2]
[367468951,1750807844299,-550.34,0.0001863,2]
[367468952,1750807844309,-550.85,0.0001863,2]
[367468953,1750807844318,-1747.11,0.0001863,2]
[367468954,1750807844328,-460.0,0.0001863,2]
[367468955,1750807844337,-589.16,0.0001863,2]
[367468956,1750807844347,-460.0,0.0001863,2]
[367468957,1750807844356,-730.22,0.0001863,2]
[367468958,1750807844366,-560.89,0.0001863,2]
[367468959,1750807844375,-910.0,0.0001863,2]
[367468960,1750807844385,-703.14,0.0001863,2]
[367468961,1750807844394,-670.46,0.0001863,2]
[367468962,1750807844404,-664.0,0.00018753,2]
[367468963,1750807844413,-365.8215413,0.00018804,2]
[367468964,1750807844423,-179.87408814,0.0001888,2]
[367468965,1750807844432,-2000.0,0.00018894,2]
[367468967,1750807844441,-1500.0,0.00018894,2]
[367468969,1750807844451,-150.0,0.000189,2]
[367468971,1750807844460,-547.59,0.00018904,2]
[367468973,1750807844469,-706.01,0.00018904,2]
[367468975,1750807844479,-483.1,0.00018904,2]
[367468977,1750807844488,-460.0,0.00018904,2]
[367468979,1750807844497,-460.0,0.00018904,2]
[367468981,1750807844507,-460.0,0.00018904,2]
[367468983,1750807844517,-932.9,0.00018904,2]
[367468985,1750807844526,-550.34,0.00018904,2]
[367468987,1750807844536,-550.85,0.00018904,2]
[367468989,1750807844545,-1747.11,0.00018904,2]
[367468990,1750807844555,-460.0,0.00018904,2]
[367468992,1750807844565,-589.16,0.00018904,2]
[367468994,1750807844574,-388.12,0.00018904,2]
[367468996,1750807844584,-730.22,0.00018904,2]
[367468998,1750807844593,-560.89,0.00018904,2]
[367469000,1750807844603,-910.0,0.00018904,2]
[367469002,1750807844612,-703.14,0.00018904,2]
[367469004,1750807844622,-670.46,0.00018904,2]
[367469006,1750807844632,-664.0,0.00018939,2]
[367469008,1750807844642,-314.0,0.00018979,2]
[367469010,1750807844652,-151.0,0.00019,2]
[367469012,1750807844664,-20000.0,0.00019,3]
[367469014,1750807844674,-213.66798275,0.00019,3]
[367469016,1750807844684,-846.68469334,0.00019,3]
[367469018,1750807844693,-524.15841286,0.00019,3]
[367469020,1750807844703,-12556.00642039,0.00019,3]
[367469022,1750807844713,-13486.0960313,0.00019,2]
[367469024,1750807844722,-13486.09603119,0.00019,2]
[367469027,1750807844733,-13486.09603119,0.00019,2]
[367469029,1750807844742,-13486.09603119,0.00019,2]
[367469030,1750807844751,-13486.09603119,0.00019,2]
[367469033,1750807844761,-13486.09603119,0.00019,2]
[367469035,1750807844770,-13486.09603119,0.00019,2]
[367469037,1750807844780,-13486.09603119,0.00019,2]
[367469039,1750807844790,-13486.09603119,0.00019,2]
[367469041,1750807844799,-1163.26759056,0.0001901,2]
[367469043,1750807844808,-500.0,0.00019068,2]
[367469045,1750807844818,-654.0,0.00019069,2]
[367469047,1750807844827,-2160.0,0.00019069,2]
[367469049,1750807844837,-406.0,0.00019069,2]
[367469051,1750807844846,-13486.09603119,0.00019072,2]
[367469053,1750807844856,-1310.52554667,0.00019102,2]
[367469055,1750807844865,-1795.26996426,0.00019111,2]
[367469057,1750807844875,-664.0,0.00019125,2]
[367469059,1750807844884,-151.0,0.00019178,2]
[367469061,1750807844893,-151.0,0.00019178,2]
[367469063,1750807844903,-160.452438,0.00019178,2]
[367469065,1750807844912,-151.0,0.00019178,2]
[367469067,1750807844922,-151.0,0.00019178,2]
[367469069,1750807844931,-547.59,0.00019178,2]
[367469071,1750807844941,-706.01,0.00019178,2]
[367469073,1750807844951,-483.1,0.00019178,2]
[367469075,1750807844960,-460.0,0.00019178,2]
[367469077,1750807844971,-460.0,0.00019178,2]
[367469079,1750807844982,-151.0,0.00019178,2]
[367469081,1750807844992,-460.0,0.00019178,2]
[367469083,1750807845001,-932.9,0.00019178,2]
[367469085,1750807845011,-550.34,0.00019178,2]
[367469087,1750807845021,-550.85,0.00019178,2]
[367469089,1750807845030,-1747.11,0.00019178,2]
[367469091,1750807845040,-151.0,0.00019178,2]
[367469093,1750807845051,-151.0,0.00019178,2]
[367469095,1750807845061,-460.0,0.00019178,2]
[367469098,1750807845083,-589.16,0.00019178,2]
[367469100,1750807845094,-730.22,0.00019178,2]
[367469102,1750807845104,-170.541972,0.00019178,2]
[367469105,1750807845114,-170.541972,0.00019178,2]
[367469107,1750807845124,-211.016046,0.00019178,2]
[367469109,1750807845135,-560.89,0.00019178,2]
[367469111,1750807845144,-211.016046,0.00019178,2]
[367469113,1750807845154,-910.0,0.00019178,2]
[367469115,1750807845164,-703.14,0.00019178,2]
[367469117,1750807845174,-151.0,0.00019178,2]
[367469119,1750807845184,-151.0,0.00019178,2]
[367469121,1750807845194,-670.46,0.00019178,2]
[367469123,1750807845203,-500.0,0.00019178,2]
[367469125,1750807845214,-500.0,0.00019178,2]
[367469127,1750807845223,-500.0,0.00019178,2]
[367469129,1750807845234,-500.0,0.00019178,2]
[367469131,1750807845244,-500.0,0.00019178,2]
[367469133,1750807845254,-500.0,0.00019178,2]
[367469136,1750807845264,-500.0,0.00019178,2]
[367469138,1750807845273,-500.0,0.00019178,2]
[367469140,1750807845283,-500.0,0.00019178,2]
[367469142,1750807845293,-500.0,0.00019178,2]
[367469144,1750807845303,-500.0,0.00019178,2]
[367469146,1750807845313,-729.272857,0.00019178,2]
[367469148,1750807845323,-168.42003544,0.00019239,2]
[367469150,1750807845334,-664.0,0.00019311,2]
[367469152,1750807845344,-13486.09603119,0.00019314,2]
[367469154,1750807845355,-153.488293,0.00019314,2]
[367469156,1750807845365,-151.0,0.00019314,2]
[367469158,1750807845376,-151.0,0.00019314,2]
[367469160,1750807845386,-151.0,0.00019314,2]
[367469162,1750807845397,-151.0,0.00019314,2]
[367469164,1750807845407,-253.647781,0.00019314,2]
[367469167,1750807845417,-210.487033,0.00019314,2]
[367469169,1750807845428,-210.487033,0.00019314,2]
[367469171,1750807845437,-151.0,0.00019314,2]
[367469173,1750807845447,-279.894487,0.00019314,2]
[367469175,1750807845457,-279.894487,0.00019314,2]
[367469177,1750807845466,-151.0,0.00019329,2]
[367469179,1750807845476,-151.0,0.00019329,2]
[367469181,1750807845486,-151.0,0.00019329,2]
[367469183,1750807845496,-151.0,0.00019329,2]
[367469185,1750807845506,-151.0,0.00019329,2]
[367469187,1750807845516,-151.0,0.00019329,2]
[367469189,1750807845526,-151.0,0.00019329,2]
[367469191,1750807845536,-151.0,0.00019329,2]
[367469193,1750807845545,-151.0,0.00019329,2]
[367469195,1750807845555,-151.0,0.00019329,2]
[367469197,1750807845565,-151.0,0.00019329,2]
[367469199,1750807845574,-151.0,0.00019329,2]
[367469201,1750807845583,-151.0,0.00019329,2]
[367469203,1750807845593,-151.0,0.00019329,2]
[367469205,1750807845603,-151.0,0.00019329,2]
[367469207,1750807845612,-151.0,0.00019329,2]
[367469209,1750807845621,-190.431758,0.00019329,2]
[367469211,1750807845631,-190.431758,0.00019329,2]
[367469213,1750807845640,-151.0,0.00019329,2]
[367469215,1750807845650,-100000.0,0.00019329,2]
[367469217,1750807845659,-168.0,0.00019383,2]
[367469219,1750807845670,-198.931457,0.00019399,2]
[367469221,1750807845680,-276.08936911,0.00019442,2]
[367469224,1750807845689,-58997.94066974,0.00019451,2]
[367469234,1750807845969,-416.65490336,0.00016438,2]
[367469235,1750807845984,-43.34509664,0.00016438,2]
[367469237,1750807845993,-297.01990336,0.00019451,2]
[367469239,1750807846006,-774.77,0.00019451,2]
[367469241,1750807846018,-1469.64887146,0.00019451,2]
[367469243,1750807846030,-3411.18445174,0.00019451,2]
[367469245,1750807846041,-933.24475225,0.00019451,2]
[367469255,1750807846127,-2712.5024788,0.00019451,2]
[367469258,1750807846138,-15300.97087247,0.00019451,2]
[367469260,1750807846150,-2199.99646509,0.00019451,2]
[367469262,1750807846161,-275.5607214,0.00019451,2]
[367469264,1750807846172,-13949.8879743,0.00019451,2]
[367469267,1750807846184,-11567.0651207,0.00019451,2]
[367469269,1750807846195,-5840.05615086,0.00019451,2]
[367469271,1750807846207,-639.12603351,0.00019451,2]
[367469273,1750807846218,-542.075,0.00019451,2]
[367469284,1750807846316,-1108.091,0.00018773,2]
[367469286,1750807846326,-1149.57157339,0.00019451,2]
[367469289,1750807846338,-759.96853026,0.00019451,2]
[367469291,1750807846349,-692.31,0.00019451,2]
[367469298,1750807846409,-725.27306679,0.00019451,2]
[367473328,1750807889308,3162.49039412,0.00016,2]
[367473335,1750808002692,150.0,0.00020234,30]
[367473338,1750808217469,425.547572,0.00013699,2]
[367473339,1750808323234,16165.20555103,0.00015437,2]
[367473340,1750808323258,8734.79444897,0.00015437,2]
[367473343,1750808730429,399.2539178,0.00015505,2]
[367473391,1750809032395,-239.9884323,0.00016334,2]
[367473419,1750809032908,-220.9710148,0.00016334,2]
[367473420,1750809032917,-179.37361092,0.00016432,2]
[367473421,1750809032930,-120.62638908,0.00016432,2]
[367473422,1750809032939,-779.53076622,0.00016432,2]
[367473423,1750809032950,-420.46923378,0.00016432,2]
[367473424,1750809032960,-500.0,0.00016433,2]
[367473425,1750809032970,-500.0,0.00016433,2]
[367473426,1750809032979,-500.0,0.00016433,2]
[367473427,1750809032988,-409.00212704,0.00016433,2]
[367473428,1750809032997,-370.29491277,0.00016433,2]
[367473429,1750809033007,-500.0,0.00016433,2]
[367473430,1750809033016,-500.0,0.00016433,2]
[367473431,1750809033026,-445.18301505,0.00016433,2]
[367473432,1750809033035,-500.0,0.00016433,2]
[367473433,1750809033045,-500.0,0.00016433,2]
[367473434,1750809033055,-50000.0,0.00016434,2]
[367473435,1750809033065,-300.0,0.00016434,2]
[367473436,1750809033074,-969.89975386,0.00016437,2]
[367473437,1750809033083,-969.89975386,0.00016437,2]
[367473438,1750809033093,-969.89975386,0.00016437,2]
[367473439,1750809033103,-969.89975386,0.00016437,2]
[367473440,1750809033112,-969.89975386,0.00016437,2]
[367473441,1750809033121,-969.89975386,0.00016437,2]
[367473442,1750809033131,-501.43745344,0.00016437,2]
[367473451,1750809038327,-468.46230042,0.00016437,2]
[367473452,1750809038337,-969.89975386,0.00016437,2]
[367473454,1750809038347,-969.89975386,0.00016437,2]
[367473455,1750809038356,-969.89975386,0.00016437,2]
[367473457,1750809038366,-969.89975386,0.00016437,2]
[367473458,1750809038376,-969.89975386,0.00016437,2]
[367473460,1750809038385,-969.89975386,0.00016437,2]
[367473462,1750809038395,-969.89975386,0.00016437,2]
[367473463,1750809038404,-969.89975386,0.00016437,2]
[367473465,1750809038413,-997.61117539,0.00016437,2]
[367473466,1750809038422,-997.61117539,0.00016437,2]
[367473468,1750809038432,-997.61117539,0.00016437,2]
[367473469,1750809038441,-997.61117539,0.00016437,2]
[367473470,1750809038450,-997.61117539,0.00016437,2]
[367473471,1750809038459,-997.61117539,0.00016437,2]
[367473472,1750809038469,-997.61117539,0.00016437,2]
[367473473,1750809038479,-997.61117539,0.00016437,2]
[367473474,1750809038488,-997.61117539,0.00016437,2]
[367473475,1750809038498,-1021.08437952,0.00016437,2]
[367473476,1750809038507,-1021.08437952,0.00016437,2]
[367473477,1750809038517,-1021.08437952,0.00016437,2]
[367473478,1750809038526,-1021.08437952,0.00016437,2]
[367473479,1750809038540,-460.0,0.00016438,2]
[367473480,1750809038549,-430.0,0.00016438,2]
[367473481,1750809038559,-460.0,0.00016438,2]
[367473482,1750809038568,-460.0,0.00016438,2]
[367473483,1750809038578,-450.0,0.00016438,2]
[367473484,1750809038587,-460.0,0.00016438,2]
[367473485,1750809038597,-460.0,0.00016438,2]
[367473486,1750809038606,-460.0,0.00016438,2]
[367473487,1750809038616,-430.0,0.00016438,2]
[367473488,1750809038626,-460.0,0.00016438,2]
[367473489,1750809038635,-387.76029338,0.00016438,2]
[367473490,1750809038645,-460.0,0.00016438,2]
[367473491,1750809038654,-460.0,0.00016438,2]
[367473492,1750809038664,-478.7304356,0.00016438,2]
[367473493,1750809038673,-157.66934147,0.00016438,2]
[367473494,1750809038683,-460.0,0.00016438,2]
[367473495,1750809038692,-420.0,0.00016438,2]
[367473496,1750809038702,-460.0,0.00016438,2]
[367473497,1750809038711,-460.0,0.00016438,2]
[367473498,1750809038720,-460.0,0.00016438,2]
[367473499,1750809038731,-429.63,0.00016438,2]
[367473500,1750809038740,-460.0,0.00016438,2]
[367473501,1750809038750,-155.59931388,0.00016438,2]
[367473502,1750809038759,-376.2605353,0.00016438,2]
[367473503,1750809038769,-460.0,0.00016438,2]
[367473504,1750809038779,-460.0,0.00016438,2]
[367473505,1750809038788,-460.0,0.00016438,2]
[367473506,1750809038797,-171.51,0.00016438,2]
[367473507,1750809038807,-460.0,0.00016438,2]
[367473508,1750809038817,-460.0,0.00016438,2]
[367473509,1750809038826,-460.0,0.00016438,2]
[367473510,1750809038835,-460.0,0.00016438,2]
[367473511,1750809038844,-460.0,0.00016438,2]
[367473512,1750809038852,-343.92217576,0.00016438,2]
[367473513,1750809038862,-460.0,0.00016438,2]
[367473514,1750809038871,-460.0,0.00016438,2]
[367473515,1750809038880,-460.0,0.00016438,2]
[367473516,1750809038889,-460.0,0.00016438,2]
[367473517,1750809038898,-488.35614709,0.00016438,2]
[367473518,1750809038908,-460.0,0.00016438,2]
[367473519,1750809038917,-460.0,0.00016438,2]
[367473520,1750809038926,-460.0,0.00016438,2]
[367473521,1750809038935,-460.0,0.00016438,2]
[367473522,1750809038944,-460.0,0.00016438,2]
[367473523,1750809038953,-380.88661246,0.00016438,2]
[367473524,1750809038962,-460.0,0.00016438,2]
[367473525,1750809038971,-500.0,0.00016438,2]
[367473526,1750809038981,-460.0,0.00016438,2]
[367473527,1750809038990,-500.0,0.00016438,2]
[367473528,1750809038999,-500.0,0.00016438,2]
[367473529,1750809039008,-500.0,0.00016438,2]
[367473530,1750809039017,-500.0,0.00016438,2]
[367473531,1750809039026,-500.0,0.00016438,2]
[367473532,1750809039035,-500.0,0.00016438,2]
[367473533,1750809039044,-460.0,0.00016438,2]
[367473534,1750809039053,-460.0,0.00016438,2]
[367473535,1750809039062,-460.0,0.00016438,2]
[367473536,1750809039071,-460.0,0.00016438,2]
[367473537,1750809039081,-460.0,0.00016438,2]
[367473538,1750809039090,-460.0,0.00016438,2]
[367473539,1750809039099,-553.57840911,0.00016438,2]
[367473540,1750809039108,-254.82957489,0.00016438,2]
[367473541,1750809039117,-460.0,0.00016438,2]
[367473542,1750809039127,-505.37067928,0.00016438,2]
[367473543,1750809039136,-460.0,0.00016438,2]
[367473544,1750809039145,-460.0,0.00016438,2]
[367473545,1750809039154,-460.0,0.00016438,2]
[367473546,1750809039163,-460.0,0.00016438,2]
[367473547,1750809039172,-460.0,0.00016438,2]
[367473548,1750809039182,-460.0,0.00016438,2]
[367473549,1750809039191,-460.0,0.00016438,2]
[367473550,1750809039200,-282.70443634,0.00016438,2]
[367473551,1750809039372,-460.0,0.00016438,2]
[367473552,1750809039383,-400.0,0.00016438,2]
[367473553,1750809039393,-460.0,0.00016438,2]
[367473554,1750809039402,-460.0,0.00016438,2]
[367473555,1750809039411,-460.0,0.00016438,2]
[367473556,1750809039420,-460.0,0.00016438,2]
[367473557,1750809039429,-460.0,0.00016438,2]
[367473558,1750809039438,-460.0,0.00016438,2]
[367473559,1750809039448,-441.02612053,0.00016438,2]
[367473560,1750809039459,-460.0,0.00016438,2]
[367473561,1750809039468,-460.0,0.00016438,2]
[367473562,1750809039477,-420.0,0.00016438,2]
[367473563,1750809039487,-460.0,0.00016438,2]
[367473564,1750809039496,-460.0,0.00016438,2]
[367473565,1750809039506,-276.09857775,0.00016438,2]
[367473566,1750809039515,-400.0,0.00016438,2]